[Event "48th Indian U15-ch Open 2023"]
[Site "Jalgaon"]
[Date "2023.12.31"]
[Round "6.2"]
[White "Bhoir Paras Dilip"]
[Black "Daksh Goyal"]
[Result "1/2-1/2"]
[ECO "B12"]
[WhiteElo "1808"]
[BlackElo "1814"]
[Annotator "NA COMBH"]
[PlyCount "139"]
[EventDate "2023.12.30"]
[EventType "swiss"]
[EventCountry "IND"]
[SourceTitle "playchess.com"]
[Source "ChessBase"]
[SourceQuality "1"]
[TimeControl "5400+30"]

1. e4 {[%emt 0:00:05]} c6 {[%emt 0:00:10]} 2. d4 {[%emt 0:00:08]} d5 {[%emt 0:00:07]} 3. e5 {[%emt 0:00:05]} Bf5 {[%emt 0:00:25]} 4. h4 {[%emt 0:00:07]} h5 {[%emt 0:00:44]} 5. Bg5 {[%emt 0:00:09]} Qb6 {[%emt 0:02:12]} 6. Bd3 {[%emt 0:00:22]} Qxd4 {[%emt 0:00:02]} 7. Nf3 {[%emt 0:00:13]} Qg4 {[%emt 0:00:01]} 8. Bxf5 {[%emt 0:00:25]} Qxf5 {[%emt 0:00:03]} 9. O-O {[%emt 0:02:37]} f6 {[%emt 0:19:27]} 10. c4 {[%emt 0:00:38]} dxc4 {[%emt 0:08:34]} 11. Nd4 {[%emt 0:09:13]} Qd3 {[%emt 0:09:55]} 12. Ne6 {[%emt 0:02:27]} Qxd1 {[%emt 0:04:08]} 13. Rxd1 {[%emt 0:00:23]} Na6 {[%emt 0:00:57]} 14. Be3 {[%emt 0:03:25]} Nh6 {[%emt 0:24:15]} 15. Nd2 {[%emt 0:07:09]} Kf7 {[%emt 0:03:22]} 16. Nf4 {[%emt 0:01:26]} fxe5 {[%emt 0:01:42]} 17. Nh3 {[%emt 0:00:44]} b5 {[%emt 0:01:49]} 18. Ng5+ {[%emt 0:04:52]} Ke8 {[%emt 0:07:31]} 19. Ndf3 {[%emt 0:01:55]} Ng4 {[%emt 0:02:03]} 20. Ne6 {[%emt 0:01:33]} g6 {[%emt 0:05:46]} 21. a4 {[%emt 0:00:27]} b4 {[%emt 0:00:34]} 22. Rac1 {[%emt 0:02:12]} c3 {[%emt 0:01:32]} 23. bxc3 {[%emt 0:05:56]} Nxe3 {[%emt 0:00:14]} 24. fxe3 {[%emt 0:00:56]} Bh6 {[%emt 0:00:01]} 25. Kf2 {[%emt 0:01:23]} Kf7 {[%emt 0:00:31]} 26. cxb4 {[%emt 0:02:09]} Nxb4 {[%emt 0:00:02]} 27. Nc7 {[%emt 0:00:10]} Rad8 {[%emt 0:03:34]} 28. Nxe5+ {[%emt 0:00:58]} Kf6 {[%emt 0:00:27]} 29. Nd7+ {[%emt 0:00:26]} Kf7 {[%emt 0:00:36]} 30. Ke2 {[%emt 0:00:36]} Bg7 {[%emt 0:01:55]} 31. e4 {[%emt 0:06:16]} Na2 {[%emt 0:00:45]} 32. Rxc6 {[%emt 0:06:38]} Nc3+ {[%emt 0:00:36]} 33. Rxc3 {[%emt 0:00:07]} Bxc3 {[%emt 0:00:03]} 34. Rf1+ {[%emt 0:05:11]} Kg8 {[%emt 0:00:10]} 35. Rd1 {[%emt 0:00:03]} Rc8 {[%emt 0:02:03]} 36. Ne6 {[%emt 0:01:58]} Kf7 {[%emt 0:00:16]} 37. Ng5+ {[%emt 0:00:20]} Ke8 {[%emt 0:00:59]} 38. e5 {[%emt 0:00:30]} Rc4 {[%emt 0:01:06]} 39. e6 {[%emt 0:00:51]} Rxa4 {[%emt 0:00:51]} 40. Rc1 {[%emt 0:03:14]} Ra3 {[%emt 0:00:30]} 41. Nf7 {[%emt 0:00:59]} Rf8 {[%emt 0:00:26]} 42. Rb1 {[%emt 0:03:39]} Ra2+ {[%emt 0:00:10]} 43. Kd3 {[%emt 0:00:38]} Bb2 {[%emt 0:00:42]} 44. Rf1 {[%emt 0:03:20]} Ra1 {[%emt 0:00:28]} 45. Rf2 {[%emt 0:00:53]} Ra3+ {[%emt 0:00:38]} 46. Ke4 {[%emt 0:01:45]} Ra4+ {[%emt 0:00:36]} 47. Kd5 {[%emt 0:01:17]} Rd4+ {[%emt 0:00:21]} 48. Kc6 {[%emt 0:00:15]} Bc1 {[%emt 0:00:38]} 49. Rf1 {[%emt 0:04:17]} Bf4 {[%emt 0:00:26]} 50. Nxf8 {[%emt 0:10:21]} Kxf8 {[%emt 0:00:02]} 51. Ne5 {[%emt 0:04:15]} Kg7 {[%emt 0:00:26]} 52. Nd7 {[%emt 0:00:25]} Rd6+ {[%emt 0:00:45]} 53. Kb7 {[%emt 0:01:18]} Rd4 {[%emt 0:00:51]} 54. Kc8 {[%emt 0:01:27]} g5 {[%emt 0:00:18]} 55. Kd8 {[%emt 0:01:32]} gxh4 {[%emt 0:00:31]} 56. Kxe7 {[%emt 0:00:20]} Bg5+ {[%emt 0:00:26]} 57. Ke8 {[%emt 0:00:34]} Rf4 {[%emt 0:03:59]} 58. Ra1 {[%emt 0:02:00]} Rc4 {[%emt 0:00:00]} 59. Ne5 {[%emt 0:00:47]} Rc7 {[%emt 0:00:00]} 60. Nf3 {[%emt 0:00:21]} Bf6 {[%emt 0:00:00]} 61. Ra4 {[%emt 0:00:18]} Re7+ {[%emt 0:00:00]} 62. Kd8 {[%emt 0:00:05]} Rxe6+ {[%emt 0:00:00]} 63. Kd7 {[%emt 0:00:19]} Re7+ {[%emt 0:00:00]} 64. Kd6 {[%emt 0:00:23]} Rb7 {[%emt 0:00:00]} 65. Nxh4 {[%emt 0:00:30]} Bxh4 {[%emt 0:00:01]} 66. Rxh4 {[%emt 0:00:07]} Rb6+ {[%emt 0:01:16]} 67. Kc5 {[%emt 0:00:30]} Rh6 {[%emt 0:00:25]} 68. g4 {[%emt 0:00:20]} hxg4 {[%emt 0:00:06]} 69. Rxg4+ {[%emt 0:00:04]} Kf7 {[%emt 0:00:04]} 70. Re4 {[%emt 0:00:17]} 1/2-1/2

[Event "48th Indian U15-ch Open 2023"]
[Site "Jalgaon"]
[Date "2023.12.31"]
[Round "6.3"]
[White "Jihan Tejas Shah"]
[Black "Sureka Akshat"]
[Result "1-0"]
[ECO "E39"]
[WhiteElo "1891"]
[BlackElo "1808"]
[Annotator "NA COMBH"]
[PlyCount "83"]
[EventDate "2023.12.30"]
[EventType "swiss"]
[EventCountry "IND"]
[SourceTitle "playchess.com"]
[Source "ChessBase"]
[SourceQuality "1"]
[TimeControl "5400+30"]

1. d4 {[%emt 0:00:12]} Nf6 {[%emt 0:00:34]} 2. c4 {[%emt 0:00:03]} e6 {[%emt 0:00:21]} 3. Nc3 {[%emt 0:00:13]} Bb4 {[%emt 0:00:21]} 4. Qc2 {[%emt 0:00:06]} c5 {[%emt 0:00:25]} 5. dxc5 {[%emt 0:00:06]} O-O {[%emt 0:00:12]} 6. Nf3 {[%emt 0:00:20]} Na6 {[%emt 0:00:45]} 7. a3 {[%emt 0:14:58]} Bxc3+ {[%emt 0:00:20]} 8. Qxc3 {[%emt 0:00:05]} Nxc5 {[%emt 0:00:04]} 9. e3 {[%emt 0:00:43]} a5 {[%emt 0:01:06]} 10. Be2 {[%emt 0:00:48]} a4 {[%emt 0:03:29]} 11. O-O {[%emt 0:03:35]} d6 {[%emt 0:00:41]} 12. Bd2 {[%emt 0:02:27]} Nfe4 {[%emt 0:03:03]} 13. Qc2 {[%emt 0:01:16]} e5 {[%emt 0:00:54]} 14. Bb4 {[%emt 0:06:29]} f5 {[%emt 0:13:37]} 15. Rad1 {[%emt 0:02:34]} Qf6 {[%emt 0:04:24]} 16. Nd2 {[%emt 0:01:58]} Qg6 {[%emt 0:07:43]} 17. f3 {[%emt 0:06:53]} Nf6 {[%emt 0:06:35]} 18. Nb1 {[%emt 0:01:51]} Nh5 {[%emt 0:11:54]} 19. Nc3 {[%emt 0:04:46]} Qh6 {[%emt 0:06:16]} 20. f4 {[%emt 0:02:41]} exf4 {[%emt 0:03:59]} 21. Bxh5 {[%emt 0:00:11]} Qxh5 {[%emt 0:00:02]} 22. Rxd6 {[%emt 0:00:20]} Ne4 {[%emt 0:04:12]} 23. Nxe4 {[%emt 0:00:45]} fxe4 {[%emt 0:00:02]} 24. Rd5 {[%emt 0:01:04]} Bf5 {[%emt 0:17:40]} 25. Bxf8 {[%emt 0:00:26]} Rxf8 {[%emt 0:01:04]} 26. Rxf4 {[%emt 0:00:31]} Rf6 {[%emt 0:02:42]} 27. Qxe4 {[%emt 0:01:17]} Bxe4 {[%emt 0:02:03]} 28. Rxh5 {[%emt 0:00:05]} Re6 {[%emt 0:00:05]} 29. Ra5 {[%emt 0:00:35]} Bc6 {[%emt 0:00:48]} 30. Ra8+ {[%emt 0:00:08]} Be8 {[%emt 0:00:04]} 31. Kf2 {[%emt 0:00:15]} h6 {[%emt 0:00:27]} 32. Rb8 {[%emt 0:00:37]} Re7 {[%emt 0:00:09]} 33. c5 {[%emt 0:00:33]} Kh7 {[%emt 0:00:04]} 34. Rxe8 {[%emt 0:00:06]} Rxe8 {[%emt 0:00:04]} 35. Rxa4 {[%emt 0:00:02]} Rd8 {[%emt 0:00:39]} 36. Ke2 {[%emt 0:00:16]} Rd5 {[%emt 0:00:07]} 37. b4 {[%emt 0:00:28]} Rh5 {[%emt 0:00:13]} 38. h3 {[%emt 0:00:10]} Rg5 {[%emt 0:00:04]} 39. g4 {[%emt 0:00:08]} h5 {[%emt 0:00:05]} 40. Kf3 {[%emt 0:00:07]} hxg4+ {[%emt 0:00:08]} 41. hxg4 {[%emt 0:00:01]} Re5 {[%emt 0:00:10]} 42. Ra7 {[%emt 0:00:04]} 1-0

[Event "48th Indian U15-ch Open 2023"]
[Site "Jalgaon"]
[Date "2023.12.31"]
[Round "6.4"]
[White "Vignesh Advaith Vemula"]
[Black "Ashwinth Michael"]
[Result "1-0"]
[ECO "B33"]
[WhiteElo "2028"]
[BlackElo "1661"]
[Annotator "COMBH"]
[PlyCount "139"]
[EventDate "2023.12.30"]
[EventType "swiss"]
[EventCountry "IND"]
[SourceTitle "playchess.com"]
[Source "ChessBase"]
[SourceQuality "1"]
[TimeControl "5400+30"]

1. e4 {[%emt 0:00:03]} c5 {[%emt 0:00:08]} 2. Nf3 {[%emt 0:00:08]} Nc6 {[%emt 0:00:04]} 3. d4 {[%emt 0:00:27]} cxd4 {[%emt 0:00:07]} 4. Nxd4 {[%emt 0:00:05]} Nf6 {[%emt 0:00:06]} 5. Nc3 {[%emt 0:00:14]} e5 {[%emt 0:00:06]} 6. Ndb5 {[%emt 0:00:44]} d6 {[%emt 0:00:07]} 7. Bg5 {[%emt 0:00:25]} a6 {[%emt 0:00:09]} 8. Na3 {[%emt 0:00:41]} b5 {[%emt 0:00:07]} 9. Nd5 {[%emt 0:00:05]} Be7 {[%emt 0:00:07]} 10. Bxf6 {[%emt 0:00:17]} Bxf6 {[%emt 0:00:08]} 11. c4 {[%emt 0:00:04]} b4 {[%emt 0:00:53]} 12. Nc2 {[%emt 0:00:05]} O-O {[%emt 0:00:28]} 13. g3 {[%emt 0:00:18]} a5 {[%emt 0:00:12]} 14. h4 {[%emt 0:01:18]} Be6 {[%emt 0:00:33]} 15. Bh3 {[%emt 0:00:26]} a4 {[%emt 0:00:58]} 16. Kf1 {[%emt 0:00:44]} b3 {[%emt 0:02:11]} 17. axb3 {[%emt 0:00:07]} axb3 {[%emt 0:00:24]} 18. Nce3 {[%emt 0:00:07]} Rxa1 {[%emt 0:06:57]} 19. Qxa1 {[%emt 0:00:05]} Nd4 {[%emt 0:00:46]} 20. Kg2 {[%emt 0:00:28]} g6 {[%emt 0:04:36]} 21. Qa7 {[%emt 0:12:41]} h5 {[%emt 0:04:37]} 22. Ra1 {[%emt 0:02:44]} Bg7 {[%emt 0:03:31]} 23. Qb7 {[%emt 0:00:40]} Bxh3+ {[%emt 0:26:47]} 24. Kxh3 {[%emt 0:00:14]} Kh7 {[%emt 0:01:29]} 25. Ra7 {[%emt 0:04:53]} Qe8 {[%emt 0:08:28]} 26. Kg2 {[%emt 0:05:22]} Qe6 {[%emt 0:03:58]} 27. Qb6 {[%emt 0:05:02]} g5 {[%emt 0:11:18]} 28. hxg5 {[%emt 0:03:50]} Qg6 {[%emt 0:00:53]} 29. Nf5 {[%emt 0:00:08]} Nxf5 {[%emt 0:01:09]} 30. exf5 {[%emt 0:00:34]} Qxf5 {[%emt 0:00:08]} 31. Qxb3 {[%emt 0:04:09]} e4 {[%emt 0:00:56]} 32. Qd1 {[%emt 0:06:41]} Qxg5 {[%emt 0:02:50]} 33. Qe2 {[%emt 0:00:37]} Qf5 {[%emt 0:02:06]} 34. b4 {[%emt 0:04:44]} Be5 {[%emt 0:01:23]} 35. Ne7 {[%emt 0:01:09]} Qg4 {[%emt 0:02:57]} 36. Qxg4 {[%emt 0:00:07]} hxg4 {[%emt 0:00:04]} 37. Nc6 {[%emt 0:00:55]} Rc8 {[%emt 0:00:23]} 38. b5 {[%emt 0:00:24]} Kg7 {[%emt 0:00:35]} 39. c5 {[%emt 0:01:05]} Kf6 {[%emt 0:00:40]} 40. Nxe5 {[%emt 0:00:47]} Kxe5 {[%emt 0:00:06]} 41. c6 {[%emt 0:00:20]} Kd5 {[%emt 0:00:09]} 42. c7 {[%emt 0:01:59]} Kc5 {[%emt 0:00:26]} 43. Rb7 {[%emt 0:00:09]} d5 {[%emt 0:02:36]} 44. b6 {[%emt 0:02:01]} Kc6 {[%emt 0:00:05]} 45. Rb8 {[%emt 0:00:09]} Kd7 {[%emt 0:00:06]} 46. Kf1 {[%emt 0:02:06]} d4 {[%emt 0:00:55]} 47. Ke2 {[%emt 0:01:49]} f5 {[%emt 0:00:09]} 48. b7 {[%emt 0:01:00]} Rxc7 {[%emt 0:00:11]} 49. Rd8+ {[%emt 0:00:03]} Kxd8 {[%emt 0:00:14]} 50. b8=Q+ {[%emt 0:00:06]} Kd7 {[%emt 0:00:06]} 51. Qb5+ {[%emt 0:00:07]} Ke6 {[%emt 0:00:21]} 52. Qb6+ {[%emt 0:00:07]} Kd7 {[%emt 0:00:04]} 53. Qxd4+ {[%emt 0:00:05]} Ke6 {[%emt 0:00:44]} 54. Qb6+ {[%emt 0:00:04]} Kd7 {[%emt 0:00:06]} 55. Qf6 {[%emt 0:00:05]} Rc5 {[%emt 0:00:08]} 56. Ke3 {[%emt 0:00:04]} Kc7 {[%emt 0:00:41]} 57. Kf4 {[%emt 0:00:10]} Rc2 {[%emt 0:00:12]} 58. Qd4 {[%emt 0:00:10]} Rc6 {[%emt 0:00:38]} 59. Kxf5 {[%emt 0:00:06]} Rd6 {[%emt 0:00:02]} 60. Qa7+ {[%emt 0:00:06]} Kc6 {[%emt 0:00:04]} 61. Kxe4 {[%emt 0:00:05]} Re6+ {[%emt 0:00:16]} 62. Kf4 {[%emt 0:00:05]} Rd6 {[%emt 0:00:16]} 63. Kxg4 {[%emt 0:00:08]} Kd5 {[%emt 0:00:05]} 64. f4 {[%emt 0:00:07]} Ke6 {[%emt 0:00:06]} 65. Qa2+ {[%emt 0:00:15]} Kf6 {[%emt 0:00:17]} 66. Qb2+ {[%emt 0:00:13]} Kg6 {[%emt 0:00:14]} 67. Qe5 {[%emt 0:00:04]} Rf6 {[%emt 0:00:06]} 68. f5+ {[%emt 0:00:05]} Kf7 {[%emt 0:00:41]} 69. Kg5 {[%emt 0:00:04]} Rb6 {[%emt 0:00:05]} 70. Qc7+ {[%emt 0:00:06]} 1-0

[Event "48th Indian U15-ch Open 2023"]
[Site "Jalgaon"]
[Date "2023.12.31"]
[Round "6.5"]
[White "Vatsal Singla"]
[Black "Samyak Dharewa"]
[Result "1/2-1/2"]
[ECO "C09"]
[WhiteElo "1714"]
[BlackElo "1939"]
[Annotator "COMBH"]
[PlyCount "91"]
[EventDate "2023.12.30"]
[EventType "swiss"]
[EventCountry "IND"]
[SourceTitle "playchess.com"]
[Source "ChessBase"]
[SourceQuality "1"]
[TimeControl "5400+30"]

1. e4 {[%emt 0:00:08]} c5 {[%emt 0:00:08]} 2. c3 {[%emt 0:00:14]} e6 {[%emt 0:00:12]} 3. Nf3 {[%emt 0:00:28]} d5 {[%emt 0:01:31]} 4. exd5 {[%emt 0:00:54]} exd5 {[%emt 0:00:10]} 5. d4 {[%emt 0:00:42]} Nc6 {[%emt 0:00:08]} 6. Bb5 {[%emt 0:04:19]} Bd6 {[%emt 0:00:10]} 7. O-O {[%emt 0:00:55]} Nge7 {[%emt 0:00:05]} 8. dxc5 {[%emt 0:01:35]} Bxc5 {[%emt 0:00:09]} 9. Nbd2 {[%emt 0:01:20]} O-O {[%emt 0:00:11]} 10. Nb3 {[%emt 0:00:06]} Bb6 {[%emt 0:00:13]} 11. Re1 {[%emt 0:02:13]} Bg4 {[%emt 0:00:32]} 12. Be3 {[%emt 0:01:51]} Ng6 {[%emt 0:17:39]} 13. h3 {[%emt 0:05:44]} Be6 {[%emt 0:08:59]} 14. Bxc6 {[%emt 0:14:48]} bxc6 {[%emt 0:00:37]} 15. Bc5 {[%emt 0:00:24]} Re8 {[%emt 0:03:55]} 16. Nfd4 {[%emt 0:01:26]} Qg5 {[%emt 0:02:43]} 17. Qf3 {[%emt 0:05:08]} Bd7 {[%emt 0:08:36]} 18. Qg3 {[%emt 0:19:03]} Qxg3 {[%emt 0:00:25]} 19. fxg3 {[%emt 0:01:28]} Ne5 {[%emt 0:00:11]} 20. a4 {[%emt 0:15:23]} Nd3 {[%emt 0:10:58]} 21. Rxe8+ {[%emt 0:00:08]} Bxe8 {[%emt 0:00:10]} 22. Bxb6 {[%emt 0:07:11]} axb6 {[%emt 0:00:18]} 23. a5 {[%emt 0:00:55]} bxa5 {[%emt 0:01:43]} 24. Rxa5 {[%emt 0:00:42]} Rd8 {[%emt 0:06:40]} 25. Nc5 {[%emt 0:03:43]} Nxb2 {[%emt 0:04:17]} 26. Kf1 {[%emt 0:03:45]} Nd1 {[%emt 0:01:29]} 27. Na4 {[%emt 0:00:32]} Ne3+ {[%emt 0:03:45]} 28. Ke2 {[%emt 0:01:15]} Nc4 {[%emt 0:00:05]} 29. Ra6 {[%emt 0:00:10]} Kf8 {[%emt 0:00:52]} 30. Nc5 {[%emt 0:02:09]} g6 {[%emt 0:04:26]} 31. g4 {[%emt 0:00:56]} h6 {[%emt 0:00:43]} 32. h4 {[%emt 0:01:11]} Ne5 {[%emt 0:04:31]} 33. g5 {[%emt 0:00:46]} hxg5 {[%emt 0:00:01]} 34. hxg5 {[%emt 0:00:01]} Rc8 {[%emt 0:00:18]} 35. Ke3 {[%emt 0:00:51]} Nd7 {[%emt 0:00:12]} 36. Ndb3 {[%emt 0:01:00]} Ke7 {[%emt 0:02:11]} 37. Kd4 {[%emt 0:01:01]} f6 {[%emt 0:00:30]} 38. Nxd7 {[%emt 0:03:01]} Bxd7 {[%emt 0:00:12]} 39. Ra7 {[%emt 0:00:48]} Kd6 {[%emt 0:09:03]} 40. Nc5 {[%emt 0:01:32]} Bf5 {[%emt 0:00:54]} 41. gxf6 {[%emt 0:00:11]} Rf8 {[%emt 0:00:16]} 42. f7 {[%emt 0:00:25]} Be6 {[%emt 0:00:14]} 43. c4 {[%emt 0:00:35]} Bf5 {[%emt 0:04:56]} 44. g4 {[%emt 0:00:46]} Bxg4 {[%emt 0:01:03]} 45. cxd5 {[%emt 0:00:08]} cxd5 {[%emt 0:00:38]} 46. Nd3 {[%emt 0:01:02]} 1/2-1/2

[Event "48th Indian U15-ch Open 2023"]
[Site "Jalgaon"]
[Date "2023.12.31"]
[Round "6.6"]
[White "Patil Akshaj"]
[Black "Nirnay Garg"]
[Result "1/2-1/2"]
[ECO "B41"]
[WhiteElo "1559"]
[BlackElo "1894"]
[Annotator "NA COMBH"]
[PlyCount "103"]
[EventDate "2023.12.30"]
[EventType "swiss"]
[EventCountry "IND"]
[SourceTitle "playchess.com"]
[Source "ChessBase"]
[SourceQuality "1"]
[TimeControl "5400+30"]

1. e4 {[%emt 0:00:05]} c5 {[%emt 0:00:07]} 2. Nf3 {[%emt 0:00:09]} e6 {[%emt 0:00:07]} 3. d4 {[%emt 0:00:06]} cxd4 {[%emt 0:00:05]} 4. Nxd4 {[%emt 0:00:07]} a6 {[%emt 0:00:04]} 5. c4 {[%emt 0:00:04]} Nf6 {[%emt 0:00:30]} 6. Nc3 {[%emt 0:00:04]} Bb4 {[%emt 0:00:09]} 7. Qd3 {[%emt 0:00:05]} Qc7 {[%emt 0:00:12]} 8. a3 {[%emt 0:00:04]} Bxc3+ {[%emt 0:00:12]} 9. Qxc3 {[%emt 0:00:03]} d6 {[%emt 0:01:08]} 10. f3 {[%emt 0:00:16]} O-O {[%emt 0:00:50]} 11. Be2 {[%emt 0:00:07]} e5 {[%emt 0:07:05]} 12. Nc2 {[%emt 0:01:39]} Be6 {[%emt 0:02:02]} 13. Bg5 {[%emt 0:02:13]} Nbd7 {[%emt 0:02:16]} 14. Ne3 {[%emt 0:01:14]} h6 {[%emt 0:04:46]} 15. Bh4 {[%emt 0:00:06]} g5 {[%emt 0:00:05]} 16. Bf2 {[%emt 0:00:10]} Rfc8 {[%emt 0:03:43]} 17. Rc1 {[%emt 0:03:37]} Qb8 {[%emt 0:15:26]} 18. Qd2 {[%emt 0:02:03]} Nc5 {[%emt 0:06:28]} 19. Rd1 {[%emt 0:00:10]} Rc6 {[%emt 0:03:02]} 20. Nd5 {[%emt 0:01:02]} Qd8 {[%emt 0:07:17]} 21. b4 {[%emt 0:03:06]} Ncd7 {[%emt 0:01:09]} 22. b5 {[%emt 0:00:10]} axb5 {[%emt 0:01:25]} 23. cxb5 {[%emt 0:00:07]} Rcc8 {[%emt 0:00:12]} 24. Nxf6+ {[%emt 0:01:10]} Nxf6 {[%emt 0:03:30]} 25. h4 {[%emt 0:01:22]} Ne8 {[%emt 0:01:34]} 26. hxg5 {[%emt 0:00:23]} hxg5 {[%emt 0:00:39]} 27. Be3 {[%emt 0:03:42]} f6 {[%emt 0:02:07]} 28. Ra1 {[%emt 0:09:22]} d5 {[%emt 0:06:17]} 29. exd5 {[%emt 0:00:53]} Qxd5 {[%emt 0:00:16]} 30. Bd3 {[%emt 0:01:22]} Rd8 {[%emt 0:03:43]} 31. Bh7+ {[%emt 0:00:49]} Kf8 {[%emt 0:07:08]} 32. Qb4+ {[%emt 0:00:13]} Nd6 {[%emt 0:03:36]} 33. Be4 {[%emt 0:04:55]} Qxb5 {[%emt 0:00:44]} 34. Qxb5 {[%emt 0:01:23]} Nxb5 {[%emt 0:00:02]} 35. Bc5+ {[%emt 0:00:06]} Kg7 {[%emt 0:08:00]} 36. Rh7+ {[%emt 0:04:19]} Kg8 {[%emt 0:00:01]} 37. Rxb7 {[%emt 0:00:29]} Nd6 {[%emt 0:05:08]} 38. Bxd6 {[%emt 0:04:36]} Rxd6 {[%emt 0:00:02]} 39. Rb2 {[%emt 0:01:21]} Ra5 {[%emt 0:01:55]} 40. Bc2 {[%emt 0:04:00]} f5 {[%emt 0:02:27]} 41. a4 {[%emt 0:00:09]} Bd7 {[%emt 0:00:38]} 42. Rd1 {[%emt 0:05:18]} Rxd1+ {[%emt 0:00:40]} 43. Bxd1 {[%emt 0:00:08]} Kf7 {[%emt 0:00:15]} 44. Bc2 {[%emt 0:00:44]} Ra6 {[%emt 0:01:40]} 45. Rb4 {[%emt 0:01:45]} Ke6 {[%emt 0:00:19]} 46. Kd2 {[%emt 0:01:47]} Kd5 {[%emt 0:01:43]} 47. Bb3+ {[%emt 0:00:56]} Kc5 {[%emt 0:00:30]} 48. Kc3 {[%emt 0:00:05]} Bc6 {[%emt 0:01:03]} 49. Rc4+ {[%emt 0:00:25]} Kd6 {[%emt 0:00:29]} 50. Rb4 {[%emt 0:00:39]} e4 {[%emt 0:00:29]} 51. fxe4 {[%emt 0:00:05]} Bxe4 {[%emt 0:00:12]} 52. g4 {[%emt 0:00:19]} 1/2-1/2

[Event "48th Indian U15-ch Open 2023"]
[Site "Jalgaon"]
[Date "2023.12.31"]
[Round "6.7"]
[White "Arshpreet Singh"]
[Black "Madhvendra Pratap Sharma"]
[Result "1/2-1/2"]
[ECO "C00"]
[WhiteElo "1878"]
[BlackElo "1803"]
[Annotator "NA COMBH"]
[PlyCount "112"]
[EventDate "2023.12.30"]
[EventType "swiss"]
[EventCountry "IND"]
[SourceTitle "playchess.com"]
[Source "ChessBase"]
[SourceQuality "1"]
[TimeControl "5400+30"]

1. e4 {[%emt 0:00:07]} e6 {[%emt 0:00:19]} 2. c4 {[%emt 0:00:02]} d5 {[%emt 0:00:26]} 3. cxd5 {[%emt 0:00:02]} exd5 {[%emt 0:00:09]} 4. exd5 {[%emt 0:00:09]} Nf6 {[%emt 0:00:35]} 5. Bb5+ {[%emt 0:00:08]} Nbd7 {[%emt 0:01:03]} 6. Nc3 {[%emt 0:00:07]} a6 {[%emt 0:00:25]} 7. Be2 {[%emt 0:00:06]} Bd6 {[%emt 0:01:47]} 8. d4 {[%emt 0:00:39]} h6 {[%emt 0:00:16]} 9. Bf3 {[%emt 0:04:04]} Nb6 {[%emt 0:04:20]} 10. Nge2 {[%emt 0:05:09]} O-O {[%emt 0:07:15]} 11. O-O {[%emt 0:06:16]} Bf5 {[%emt 0:14:00]} 12. Ng3 {[%emt 0:04:56]} Qd7 {[%emt 0:02:59]} 13. Qb3 {[%emt 0:14:09]} Bg4 {[%emt 0:16:12]} 14. Nce4 {[%emt 0:06:07]} Nxe4 {[%emt 0:09:32]} 15. Nxe4 {[%emt 0:20:37]} Bxf3 {[%emt 0:07:04]} 16. Qxf3 {[%emt 0:00:14]} Nxd5 {[%emt 0:03:11]} 17. Nc5 {[%emt 0:20:08]} Bxc5 {[%emt 0:04:54]} 18. dxc5 {[%emt 0:00:33]} Qc6 {[%emt 0:02:36]} 19. Rd1 {[%emt 0:00:27]} Rad8 {[%emt 0:01:12]} 20. Be3 {[%emt 0:00:41]} Nxe3 {[%emt 0:01:15]} 21. Qxc6 {[%emt 0:00:20]} bxc6 {[%emt 0:01:14]} 22. fxe3 {[%emt 0:00:02]} Rfe8 {[%emt 0:08:25]} 23. Kf2 {[%emt 0:01:05]} Rb8 {[%emt 0:02:18]} 24. Rd2 {[%emt 0:05:32]} Re5 {[%emt 0:01:22]} 25. Rc1 {[%emt 0:00:19]} Rd5 {[%emt 0:00:54]} 26. Rcc2 {[%emt 0:03:32]} Rf5+ {[%emt 0:02:29]} 27. Kg3 {[%emt 0:02:30]} Rb5 {[%emt 0:00:29]} 28. Rd8+ {[%emt 0:02:29]} Kh7 {[%emt 0:00:03]} 29. Ra8 {[%emt 0:00:52]} a5 {[%emt 0:02:25]} 30. Ra7 {[%emt 0:01:55]} Rfxc5 {[%emt 0:02:39]} 31. Re2 {[%emt 0:00:39]} Rg5+ {[%emt 0:03:29]} 32. Kf2 {[%emt 0:00:06]} Rgf5+ {[%emt 0:00:33]} 33. Ke1 {[%emt 0:01:18]} Rbc5 {[%emt 0:00:21]} 34. Rxc7 {[%emt 0:00:51]} Rc1+ {[%emt 0:00:17]} 35. Kd2 {[%emt 0:00:14]} Rfc5 {[%emt 0:00:29]} 36. Kd3 {[%emt 0:01:08]} Rd5+ {[%emt 0:00:20]} 37. Ke4 {[%emt 0:00:04]} Rc4+ {[%emt 0:00:46]} 38. Kf3 {[%emt 0:00:01]} Rf5+ {[%emt 0:00:22]} 39. Kg3 {[%emt 0:00:05]} Rg5+ {[%emt 0:00:36]} 40. Kf2 {[%emt 0:00:02]} Rf5+ {[%emt 0:00:19]} 41. Ke1 {[%emt 0:00:04]} Rc1+ {[%emt 0:00:35]} 42. Kd2 {[%emt 0:00:03]} Rfc5 {[%emt 0:00:49]} 43. Ra7 {[%emt 0:01:23]} Ra1 {[%emt 0:00:40]} 44. a3 {[%emt 0:00:46]} Rb1 {[%emt 0:00:30]} 45. Kd3 {[%emt 0:00:26]} Rd1+ {[%emt 0:00:24]} 46. Ke4 {[%emt 0:00:13]} Rf1 {[%emt 0:00:41]} 47. Kd4 {[%emt 0:00:48]} Rb5 {[%emt 0:00:29]} 48. Rc7 {[%emt 0:01:48]} Rd1+ {[%emt 0:00:26]} 49. Ke4 {[%emt 0:00:41]} f5+ {[%emt 0:00:22]} 50. Kf3 {[%emt 0:00:20]} Rf1+ {[%emt 0:00:22]} 51. Kg3 {[%emt 0:00:11]} f4+ {[%emt 0:00:46]} 52. exf4 {[%emt 0:00:27]} Rb3+ {[%emt 0:00:12]} 53. Kg4 {[%emt 0:00:19]} h5+ {[%emt 0:00:10]} 54. Kxh5 {[%emt 0:00:55]} Rxf4 {[%emt 0:00:32]} 55. Kg5 {[%emt 0:01:18]} Rf6 {[%emt 0:00:46]} 56. g4 {[%emt 0:00:30]} Rbf3 {[%emt 0:00:51]} 1/2-1/2